bitfinex/quotes_SOLUSD_20240909
["timestamp","ask_amount","ask_price","bid_price","bid_amount"]
[1725900460651,15.158,132.18,132.07,46.51391419]
[1725900460849,15.158,132.18,132.07,45.0]
[1725900461022,15.158,132.18,132.08,1.51391419]
[1725900461427,15.158,132.18,132.08,50.0]
[1725900461643,15.158,132.18,132.09,45.0]
[1725900462967,15.158,132.18,132.1,1.51369524]
[1725900463253,15.158,132.18,132.09,45.0]
[1725900463429,15.158,132.18,132.03,57.87486703]
[1725900463430,15.158,132.18,132.03,50.0]
[1725900464657,0.12549,132.17,132.03,50.0]
[1725900466232,0.12549,132.17,132.04,1.51418402]
[1725900466430,0.12549,132.17,132.03,50.0]
[1725900466655,0.12549,132.17,132.01,50.0]
[1725900468638,0.12549,132.17,132.02,45.0]
[1725900469137,0.12549,132.17,132.01,50.0]
[1725900469345,15.158,132.18,132.07,50.0]
[1725900469561,15.158,132.18,132.09,50.0]
[1725900469857,15.158,132.18,132.08,1.51368694]
[1725900469858,15.158,132.18,132.11,50.0]
[1725900470339,0.8412128,132.2,132.15,50.0]
[1725900470543,0.8412128,132.2,132.16,45.12549]
[1725900471157,0.8412128,132.2,132.18,0.12549]
[1725900471363,0.8412128,132.2,132.18,45.0]
[1725900471761,0.8412128,132.2,132.18,50.0]
[1725900471944,0.8412128,132.2,132.19,45.0]
[1725900472270,0.8412128,132.2,132.19,45.12549]
[1725900472469,0.1,132.3,132.21,50.0]
[1725900473369,0.1,132.3,132.2,0.12549]
[1725900473742,0.1,132.3,132.23,50.0]
[1725900473962,0.1,132.3,132.25,50.0]
[1725900474172,0.1,132.3,132.23,50.0]
[1725900474857,0.1,132.3,132.24,45.0]
[1725900475273,0.1,132.3,132.18,50.0]
[1725900475580,0.1,132.3,132.16,50.0]
[1725900475874,0.1,132.3,132.14,50.0]
[1725900476077,0.1,132.3,132.16,50.0]
[1725900476369,0.1,132.3,132.14,50.0]
[1725900476573,0.12549,132.28,132.14,50.0]
[1725900476754,0.12549,132.26,132.12,50.0]
[1725900477078,0.1,132.3,132.18,50.0]
[1725900477248,0.1,132.3,132.16,50.0]
[1725900478455,0.1,132.3,132.14,50.0]
[1725900479949,0.1,132.3,132.11,50.0]
[1725900479950,0.12549,132.28,132.11,50.0]
[1725900480152,0.12549,132.26,132.11,50.0]
[1725900480451,0.1,132.3,132.04,14.059]
[1725900480452,0.12549,132.22,132.07,50.0]
[1725900480843,0.12549,132.22,132.09,50.0]
[1725900481047,6.5736,132.23,132.13,50.0]
[1725900481966,6.5736,132.23,132.15,50.0]
[1725900482167,6.5736,132.23,132.16,45.0]
[1725900482355,6.5736,132.23,132.17,1.51271444]
[1725900482569,6.5736,132.23,132.16,45.0]
[1725900482744,16.4076,132.25,132.16,45.0]
[1725900482954,16.4076,132.25,132.18,0.12549]
[1725900483274,16.4076,132.25,132.19,50.0]
[1725900483478,16.4076,132.25,132.2,46.51231368]
[1725900483645,16.4076,132.25,132.21,1.51228549]
[1725900484071,16.4076,132.25,132.2,45.0]
[1725900484260,16.4076,132.25,132.15,50.0]
[1725900484463,16.4076,132.25,132.14,50.0]
[1725900484863,16.4076,132.25,132.08,57.87486703]
[1725900484864,16.4076,132.25,132.16,50.0]
[1725900485181,16.4076,132.25,132.18,50.0]
[1725900485349,16.4076,132.25,132.2,50.0]
[1725900485554,16.4076,132.25,132.21,1.51224547]
[1725900485867,16.4076,132.25,132.21,46.51224547]
[1725900486162,16.4076,132.25,132.22,50.0]
[1725900486371,16.4076,132.25,132.11,22.92]
[1725900486372,16.4076,132.25,132.19,0.12549]
[1725900486567,16.4076,132.25,132.19,45.12549]
[1725900487151,16.4076,132.25,132.21,50.0]
[1725900487352,16.4076,132.25,132.22,46.51221032]
[1725900487579,16.4076,132.25,132.22,45.0]
[1725900487747,16.4076,132.25,132.19,50.12549]
[1725900487948,16.4076,132.25,132.17,50.0]
[1725900488463,16.4076,132.25,132.18,1.5124787]
[1725900488661,16.4076,132.25,132.17,50.0]
[1725900488981,16.4076,132.25,132.15,50.0]
[1725900489363,16.4076,132.25,132.17,50.0]
[1725900489758,16.4076,132.25,132.18,1.51252565]
[1725900490153,16.4076,132.25,132.17,50.0]
[1725900490359,16.4076,132.25,132.19,50.12549]
[1725900490656,6.4654,132.29,132.24,50.0]
[1725900490860,0.1,132.3,132.24,50.0]
[1725900491568,0.1,132.3,132.25,46.51175988]
[1725900491783,0.1,132.3,132.25,45.0]
[1725900492176,0.1,132.3,132.26,51.63715431]
[1725900492485,0.1,132.3,132.29,0.12549]
[1725900492785,0.1,132.3,132.29,45.0]
[1725900493158,0.1,132.3,132.28,50.0]
[1725900493384,0.1,132.3,132.29,20.0]
[1725900493987,0.8412128,132.33,132.3,50.0]
[1725900494885,0.8412128,132.33,132.31,1.51109517]
[1725900495383,0.8412128,132.33,132.32,50.12549]
[1725900495596,0.8412128,132.33,132.32,50.0]
[1725900495889,0.8412128,132.33,132.32,96.51089949]
[1725900496086,0.8412128,132.33,132.3,50.0]
[1725900496296,0.8412128,132.33,132.26,50.0]
[1725900498172,0.8412128,132.33,132.27,1.51143374]
[1725900498375,0.8412128,132.33,132.28,50.0]
[1725900498565,0.8412128,132.33,132.3,50.0]
[1725900498773,0.8412128,132.33,132.31,1.51112618]
[1725900498980,0.8412128,132.33,132.31,46.51112618]
[1725900499165,0.8412128,132.33,132.31,45.0]
[1725900499584,0.8412128,132.33,132.28,50.0]
[1725900499894,0.8412128,132.33,132.29,45.0]
[1725900500587,0.8412128,132.33,132.28,50.0]
[1725900500983,0.8412128,132.33,132.3,50.0]
[1725900501183,0.8412128,132.33,132.29,45.0]
[1725900501484,0.8412128,132.33,132.24,50.0]
[1725900501879,0.8412128,132.33,132.25,50.0]
[1725900502072,0.8412128,132.33,132.26,1.5116076]
[1725900502269,0.8412128,132.33,132.27,1.51152875]
[1725900502481,0.8412128,132.33,132.25,50.0]
[1725900503011,0.8412128,132.33,132.23,50.0]
[1725900503693,0.8412128,132.33,132.25,50.0]
[1725900504373,0.8412128,132.33,132.23,50.0]
[1725900504572,21.4021,132.32,132.21,50.0]
[1725900505400,21.4021,132.32,132.18,50.0]
[1725900505401,0.12549,132.31,132.18,50.0]
[1725900505797,21.4021,132.32,132.2,50.0]
[1725900506475,21.4021,132.32,132.16,57.87486703]
[1725900506476,21.4021,132.32,132.22,50.0]
[1725900507073,21.4021,132.32,132.23,1.51197017]
[1725900507299,21.4021,132.32,132.26,50.0]
[1725900507606,21.4021,132.32,132.27,45.0]
[1725900507776,21.4021,132.32,132.24,50.0]
[1725900507979,21.4021,132.32,132.26,0.12549]
[1725900508186,21.4021,132.32,132.26,50.0]
[1725900508775,21.4021,132.32,132.25,45.0]
[1725900508982,21.4021,132.32,132.24,45.0]
[1725900509381,21.4021,132.32,132.25,50.0]
[1725900509600,21.4021,132.32,132.26,45.0]
[1725900510189,21.4021,132.32,132.25,50.0]
[1725900510395,21.4021,132.32,132.26,46.51165858]
[1725900510588,21.4021,132.32,132.23,50.0]
[1725900510786,21.4021,132.32,132.25,50.0]
[1725900511114,21.4021,132.32,132.26,45.0]
[1725900511285,21.4021,132.32,132.24,45.0]
[1725900511685,21.4021,132.32,132.21,50.0]
[1725900512088,21.4021,132.32,132.22,1.5120921]
[1725900512699,21.4021,132.32,132.12,6.2329]
[1725900512700,21.4021,132.32,132.19,50.0]
[1725900512902,21.4021,132.32,132.21,50.0]
[1725900513111,20.9021,132.32,132.21,50.0]
[1725900513405,20.9021,132.32,132.22,1.51202441]
[1725900513606,20.9021,132.32,132.18,1.51202441]
[1725900513607,20.9021,132.32,132.23,50.0]
[1725900513978,20.9021,132.32,132.21,50.0]
[1725900514185,20.9021,132.32,132.19,50.0]
[1725900514892,20.9021,132.32,132.17,50.0]
[1725900515210,20.9021,132.32,132.15,48.08532985]
[1725900515211,0.12549,132.31,132.15,50.0]
[1725900515385,0.12549,132.29,132.13,50.0]
[1725900515586,45.12549,132.29,132.13,50.0]
[1725900515795,45.12549,132.29,132.11,50.0]
[1725900515796,0.12549,132.27,132.11,50.0]
[1725900516109,6.1702,132.26,132.11,50.0]
[1725900516285,0.12549,132.25,132.11,50.0]
[1725900516682,0.12549,132.23,132.09,50.0]
[1725900517105,15.6336,132.24,132.09,50.0]
[1725900517419,0.12549,132.23,132.07,50.0]
[1725900517887,0.12549,132.21,132.05,50.0]
[1725900518097,6.1702,132.22,132.05,50.0]
[1725900518098,0.12549,132.19,132.05,50.0]
[1725900518292,15.6336,132.2,132.09,50.0]
[1725900518491,15.6336,132.2,132.1,1.51346557]
[1725900518697,15.6336,132.2,132.11,1.51360211]
[1725900519106,15.6336,132.2,132.09,50.0]
[1725900519282,15.6336,132.2,132.1,1.51342698]
[1725900519609,15.6336,132.2,132.05,48.08532985]
[1725900519610,15.6336,132.2,132.07,50.0]
[1725900520612,0.12549,132.19,132.05,98.08532985]
[1725900520903,0.12549,132.19,132.06,20.0]
[1725900521115,0.12549,132.19,132.05,50.0]
[1725900521604,0.12549,132.19,132.03,50.0]
[1725900521807,45.12549,132.19,132.03,50.0]
[1725900522112,0.12549,132.17,132.03,50.0]
[1725900522288,6.0276,132.18,132.05,50.0]
[1725900522787,6.0276,132.18,132.07,50.0]
[1725900523307,6.0276,132.18,132.1,50.0]
[1725900523499,6.0276,132.18,132.08,50.0]
[1725900523704,6.0276,132.18,132.09,45.0]
[1725900524205,6.0276,132.18,132.1,51.51349268]
[1725900524390,6.0276,132.18,132.11,46.51323217]
[1725900524591,6.0276,132.18,132.11,45.0]
[1725900524792,6.0276,132.18,132.08,50.0]
[1725900524992,6.0276,132.18,132.09,45.0]
[1725900525193,6.0276,132.18,132.1,51.63896582]
[1725900525391,6.0276,132.18,132.11,45.0]
[1725900525999,6.0276,132.18,132.09,0.12549]
[1725900526298,6.0276,132.18,132.08,50.0]
[1725900526614,6.0276,132.18,132.06,48.08532985]
[1725900526615,6.0276,132.18,132.1,50.0]
[1725900526793,6.0276,132.18,132.11,1.51338428]
[1725900527204,6.0276,132.18,132.1,50.0]
[1725900527806,6.0276,132.18,132.11,45.0]
[1725900528289,6.0276,132.18,132.08,50.0]
[1725900529820,6.0276,132.18,132.09,45.0]
[1725900530392,6.0276,132.18,132.1,51.51355548]
[1725900530592,15.6336,132.2,132.1,50.0]
[1725900530891,15.6336,132.2,132.12,50.0]
[1725900531122,15.6336,132.2,132.11,66.63885038]
[1725900531123,15.6336,132.2,132.11,45.0]
[1725900531417,15.6336,132.2,132.12,20.0]
[1725900531595,15.6336,132.2,132.13,1.51323337]
[1725900531912,15.6336,132.2,132.14,51.51304032]
[1725900532116,15.6336,132.2,132.16,50.0]
[1725900532504,15.6336,132.2,132.17,45.0]
[1725900532692,15.6336,132.2,132.14,98.08532985]
[1725900532693,15.6336,132.2,132.14,50.0]
[1725900533049,15.6336,132.2,132.15,65.0]
[1725900533409,15.6336,132.2,132.16,50.0]
[1725900534015,15.6336,132.2,132.15,65.0]
[1725900534209,15.6336,132.2,132.15,20.0]
[1725900535194,15.6336,132.2,132.16,1.51285823]
[1725900535720,6.1317,132.23,132.18,50.0]
[1725900536109,6.1317,132.23,132.16,50.0]
[1725900536311,6.1317,132.23,132.15,20.0]
[1725900536521,6.1317,132.23,132.14,20.0]
[1725900536903,6.1317,132.23,132.15,50.0]
[1725900539029,2.29896838,132.32,132.31,50.12549]
[1725900539230,2.29896838,132.32,132.22,10.0]
[1725900539231,0.8412128,132.33,132.26,50.0]
[1725900539421,0.8412128,132.33,132.32,50.0]
[1725900539617,0.8412128,132.33,132.32,70.12549]
[1725900539927,0.8412128,132.33,132.32,115.12549]
[1725900540134,0.8412128,132.33,132.32,70.0]
[1725900540306,0.8412128,132.33,132.32,50.0]
[1725900540609,0.8412128,132.33,132.32,118.21081985]
[1725900540810,0.8412128,132.33,132.32,163.21081985]
[1725900541817,0.8412128,132.33,132.32,50.0]
[1725900542841,0.8412128,132.33,132.32,98.21081985]
[1725900543006,0.8412128,132.33,132.32,70.0]
[1725900543199,0.8412128,132.33,132.32,50.0]
[1725900543428,0.8412128,132.33,132.32,50.12549]
[1725900543733,0.8412128,132.33,132.3,50.0]
[1725900543918,0.8412128,132.33,132.31,20.0]
[1725900544627,0.8412128,132.33,132.3,50.0]
[1725900545732,0.8412128,132.33,132.28,50.0]
[1725900546529,0.8412128,132.33,132.26,50.0]
[1725900546829,1.28e-05,132.33,132.26,50.0]
[1725900547309,1.28e-05,132.33,132.24,50.0]
[1725900547512,1.28e-05,132.33,132.22,11.01088307]
[1725900547513,21.5766,132.32,132.22,50.0]
[1725900547905,0.12549,132.31,132.18,61.01088307]
[1725900548106,45.0,132.31,132.2,50.0]
[1725900548335,21.5766,132.32,132.2,50.0]
[1725900548548,0.1255028,132.33,132.29,98.08532985]
[1725900548549,1.28e-05,132.33,132.29,98.08532985]
[1725900548824,1.28e-05,132.33,132.31,50.0]
[1725900549130,1.28e-05,132.33,132.3,11.73310529]
[1725900549427,1.28e-05,132.33,132.31,50.0]
[1725900549630,1.28e-05,132.33,132.32,1.51094358]
[1725900549830,1.28e-05,132.33,132.32,1.51090336]
[1725900550137,1.28e-05,132.33,132.32,20.0]
[1725900551004,1.28e-05,132.33,132.32,70.0]
[1725900551633,1.28e-05,132.33,132.32,20.0]
[1725900551849,1.28e-05,132.33,132.32,71.51104057]
[1725900552143,1.28e-05,132.33,132.32,51.51104057]
[1725900552509,1.28e-05,132.33,132.32,61.73310529]
[1725900552726,1.28e-05,132.33,132.32,81.73310529]
[1725900552933,1.28e-05,132.33,132.32,126.85859529]
[1725900554324,1.28e-05,132.33,132.32,70.12549]
[1725900555550,1.28e-05,132.33,132.32,81.85859529]
[1725900556331,15.3438,132.42,132.37,50.0]
[1725900556529,15.3438,132.42,132.38,20.0]
[1725900557205,15.3438,132.42,132.39,50.0]
[1725900557508,15.3438,132.42,132.38,20.0]
[1725900557728,15.3438,132.42,132.39,50.0]
[1725900558430,15.3438,132.42,132.34,107.60830307]
[1725900558638,15.3438,132.42,132.32,50.0]
[1725900558841,15.3438,132.42,132.33,1.51065224]
[1725900559011,15.3438,132.42,132.32,50.0]
[1725900559839,15.3438,132.42,132.34,50.0]
[1725900560218,15.3438,132.42,132.36,50.0]
[1725900560420,15.3438,132.42,132.37,1.51037441]
[1725900560641,15.3438,132.42,132.36,50.0]
[1725900561343,15.3438,132.42,132.34,50.0]
[1725900563430,15.3438,132.42,132.32,50.0]
[1725900563639,0.12549,132.41,132.29,11.73310529]
[1725900563829,0.12549,132.41,132.26,61.73310529]
[1725900563830,45.12549,132.41,132.26,61.73310529]
[1725900564028,45.12549,132.41,132.26,50.0]
[1725900564513,16.6197,132.39,132.24,50.0]
[1725900564719,45.12549,132.38,132.24,50.0]
[1725900565622,45.12549,132.38,132.26,50.0]
[1725900566120,45.0,132.38,132.27,1.51150753]
[1725900566535,0.12549,132.37,132.26,11.70385529]
[1725900566715,45.0,132.38,132.26,50.0]
[1725900566923,45.0,132.38,132.27,1.51148085]
[1725900567329,0.12549,132.38,132.28,1.51135438]
[1725900567532,45.0,132.38,132.28,1.51135438]
[1725900567726,45.0,132.38,132.26,50.0]
[1725900567727,0.12549,132.38,132.26,50.0]
[1725900567923,45.12549,132.38,132.27,1.51144287]
[1725900568157,16.6197,132.39,132.28,50.0]
[1725900568453,16.6197,132.39,132.29,1.51143565]
[1725900568749,16.6197,132.39,132.26,50.0]
[1725900568922,16.6197,132.39,132.27,20.0]
[1725900569252,16.6197,132.39,132.28,51.51139745]
[1725900569452,0.8412128,132.46,132.34,50.0]
[1725900569626,0.8412128,132.46,132.34,107.60830307]
[1725900569821,0.8412128,132.46,132.35,20.0]
[1725900570531,0.8412128,132.46,132.34,50.0]
[1725900570747,0.8412128,132.46,132.35,20.0]
[1725900571536,0.8412128,132.46,132.36,1.5105697]
[1725900572057,0.8412128,132.46,132.39,50.0]
[1725900572237,0.8412128,132.46,132.4,1.51000517]
[1725900572435,0.8412128,132.46,132.37,50.0]
[1725900572632,0.8412128,132.46,132.38,20.0]
[1725900572831,0.84121279,132.46,132.38,21.5101334]
[1725900573066,0.84121279,132.46,132.38,20.0]
[1725900573251,0.84121279,132.46,132.41,50.0]
[1725900573731,0.84121279,132.46,132.43,50.0]
[1725900574130,0.84121279,132.46,132.41,50.0]
[1725900574439,0.84121279,132.46,132.39,50.0]
[1725900574952,0.84121279,132.46,132.43,50.0]
[1725900575127,0.84121279,132.46,132.38,20.0]
[1725900575128,0.84121279,132.46,132.44,51.50963258]
[1725900575331,0.84121279,132.46,132.44,50.0]
[1725900576236,0.84121279,132.46,132.45,0.12549]
[1725900576649,0.84121279,132.46,132.44,50.0]
[1725900577155,0.84121279,132.46,132.45,77.67694195]
[1725900577355,0.84121279,132.46,132.45,122.67694195]
[1725900577534,0.71581279,132.46,132.45,122.67694195]
[1725900577733,16.3965,132.58,132.51,50.0]
[1725900578127,16.3965,132.58,132.49,50.0]
[1725900578353,16.3965,132.58,132.51,50.0]
[1725900578551,7.3560128,132.59,132.53,50.0]
[1725900578552,0.8412128,132.59,132.53,50.0]
[1725900578734,0.8412128,132.59,132.51,57.55145195]
[1725900578735,0.8412128,132.59,132.55,50.0]
[1725900578934,0.8412128,132.59,132.45,75.12549]
[1725900578935,0.8412128,132.59,132.53,50.0]
[1725900579242,0.8412128,132.59,132.49,50.0]
[1725900579438,22.6373,132.58,132.47,50.0]
[1725900579956,0.8412128,132.59,132.51,50.0]
[1725900580127,0.8412128,132.59,132.55,50.0]
[1725900580562,0.8412128,132.59,132.51,57.55145195]
[1725900580563,0.8412128,132.59,132.53,50.0]
[1725900580736,0.8412128,132.59,132.51,50.0]
[1725900580944,0.8412128,132.59,132.52,1.50855649]
[1725900581147,0.8412128,132.59,132.51,50.0]
[1725900581552,0.8412128,132.59,132.46,1.50860401]
[1725900581553,0.8412128,132.59,132.49,50.0]
[1725900581761,0.8412128,132.59,132.51,50.0]
[1725900581965,0.8412128,132.59,132.55,50.0]
[1725900582158,0.8412128,132.59,132.56,1.50802095]
[1725900582357,0.8412128,132.59,132.56,51.50802095]
[1725900582860,0.8412128,132.59,132.57,1.50788716]
[1725900583101,0.8412128,132.59,132.58,1.50812552]
[1725900583540,0.8412128,132.59,132.58,20.12549]
[1725900583743,0.8412128,132.59,132.58,45.12549]
[1725900583958,0.8412128,132.59,132.58,46.50765444]
[1725900584255,10.0,132.76,132.58,46.50765444]
[1725900584256,13.00368578,132.86,132.81,10.27721279]
[1725900584495,7.8225538,133.1,132.81,10.27721279]
[1725900584496,7.31088154,133.23,133.2,0.12549]
[1725900584643,30.4205876,133.21,133.07,51.50065625]
[1725900584965,30.4205876,133.21,133.07,50.0]
[1725900584966,0.4205876,133.21,133.07,50.0]
[1725900585152,0.4205876,133.21,132.99,0.12549]
[1725900585153,32.0786898,133.2,133.05,50.0]
[1725900585332,22.0786898,133.2,133.12,50.0]
[1725900585557,12.73047947,133.21,133.12,50.0]
[1725900585740,12.30989187,133.2,133.13,50.0]
[1725900585958,12.30989187,133.2,133.07,1.50182699]
[1725900585959,12.30989187,133.2,133.11,50.0]
[1725900586156,12.30989187,133.2,133.05,50.0]
[1725900586374,0.4205876,133.21,133.03,1.50171342]
[1725900586375,0.4205876,133.21,133.19,50.0]
[1725900586671,0.4205876,133.21,133.1,50.0]
[1725900587038,10.0,133.16,132.97,50.0]
[1725900587239,21.7879,133.19,133.02,50.0]
[1725900587460,19.52649163,133.16,133.0,50.0]
[1725900587678,29.2961,133.19,132.87,7.83448839]
[1725900587679,10.0,133.13,132.96,50.0]
[1725900587864,9.52649163,133.12,132.98,50.0]
[1725900588050,10.0,133.13,132.94,50.0]
[1725900588250,9.52649163,133.12,132.94,50.0]
[1725900588451,10.0,133.14,132.96,50.0]
[1725900588691,10.0,133.08,132.9,50.0]
[1725900588861,51.4196,133.07,132.9,50.0]
[1725900589162,10.0,133.06,132.9,50.0]
[1725900589370,60.3683,133.05,132.88,50.0]
[1725900589558,0.12549,133.01,132.82,50.0]
[1725900589763,0.12549,133.03,132.88,50.0]
[1725900589956,45.12549,133.03,132.88,50.0]
[1725900590264,10.12549,133.01,132.84,50.0]
[1725900590462,29.52649163,133.02,132.84,50.0]
[1725900590463,10.12549,132.99,132.84,50.0]
[1725900590657,65.0,133.0,132.84,50.0]
[1725900590658,65.0,132.98,132.84,50.0]
[1725900590859,45.0,132.97,132.87,50.0]
[1725900591044,20.0,132.96,132.88,1.5045778]
[1725900591255,20.0,132.96,132.87,50.0]
[1725900591571,20.0,132.96,132.85,50.0]
[1725900591748,45.0,132.95,132.85,50.0]
[1725900591944,45.0,132.95,132.82,50.0]
[1725900591945,20.0,132.94,132.82,50.0]
[1725900592443,45.0,132.93,132.82,50.0]
[1725900592646,20.0,132.92,132.82,50.0]
[1725900592860,20.0,132.92,132.65,63.37965195]
[1725900592861,45.0,132.91,132.8,50.0]
[1725900593105,26.3892,132.9,132.8,50.0]
[1725900593367,45.0,132.89,132.77,50.0]
[1725900593668,36.5826,132.88,132.77,50.0]
[1725900593865,45.0,132.87,132.77,50.0]
[1725900594060,45.0,132.87,132.66,50.0]
[1725900594061,20.0,132.86,132.66,50.0]
[1725900594272,20.0,132.86,132.73,50.0]
[1725900594273,45.0,132.85,132.73,50.0]
[1725900594446,20.0,132.86,132.76,50.0]
[1725900594653,20.0,132.87,132.76,50.0]
[1725900594841,45.0,132.86,132.74,50.0]
[1725900595044,20.0,132.85,132.74,50.0]
[1725900595278,45.0,132.84,132.74,50.0]
[1725900595456,20.0,132.85,132.74,50.0]
[1725900595661,45.0,132.84,132.74,50.0]
[1725900596053,20.0,132.85,132.77,50.0]
[1725900596248,20.0,132.85,132.74,50.0]
[1725900596677,20.12549,132.87,132.72,50.0]
[1725900596846,0.12549,132.85,132.72,50.0]
[1725900597049,20.12549,132.85,132.73,1.50625343]
[1725900597271,20.0,132.85,132.76,50.0]
[1725900597874,45.0,132.84,132.75,50.0]
[1725900598174,16.5826,132.88,132.79,50.0]
[1725900598601,16.5826,132.88,132.8,1.50529959]
[1725900598868,16.5826,132.88,132.79,50.0]
[1725900599755,16.5826,132.88,132.77,50.0]
[1725900600174,16.5826,132.88,132.65,10.0]
[1725900600175,34.5017583,132.88,132.65,10.0]
[1725900600384,10.3931583,132.87,132.72,50.0]
[1725900600673,72.5271,132.86,132.71,50.0]
[1725900600850,0.12549,132.85,132.71,50.0]
[1725900601273,10.5186483,132.85,132.71,50.0]
[1725900601473,10.5186483,132.85,132.69,50.0]
[1725900601474,0.12549,132.83,132.69,50.0]
[1725900601774,0.12549,132.83,132.62,0.927176]
[1725900601775,0.12549,132.81,132.65,50.0]
[1725900601979,10.3931583,132.8,132.65,50.0]
[1725900602175,20.12549,132.79,132.65,50.0]
[1725900602375,0.12549,132.77,132.65,50.0]
[1725900602579,26.0044583,132.76,132.62,50.927176]
[1725900602753,65.12549,132.75,132.62,50.927176]
[1725900602956,65.0,132.75,132.64,50.0]
[1725900603163,0.12549,132.74,132.62,50.927176]
[1725900603573,0.12549,132.74,132.62,0.927176]
[1725900603778,7.65899,132.74,132.62,0.927176]
[1725900603981,0.12549,132.72,132.62,0.927176]
[1725900604169,20.12549,132.72,132.62,0.927176]
[1725900604368,0.12549,132.7,132.62,0.927176]
[1725900604698,20.12549,132.7,132.57,50.0]
[1725900604897,20.12549,132.7,132.5,1.50792806]
[1725900604898,20.0,132.7,132.61,50.0]
[1725900605061,20.0,132.7,132.52,57.55145195]
[1725900605062,15.6113,132.76,132.64,50.0]
[1725900605268,15.6113,132.76,132.66,50.0]
[1725900605469,15.6113,132.76,132.69,50.0]
[1725900605662,15.6113,132.76,132.7,1.50665023]
[1725900605863,15.6113,132.76,132.69,50.0]
[1725900606171,15.6113,132.76,132.7,1.50664075]
[1725900606487,15.6113,132.76,132.71,51.50652741]
[1725900606673,15.6113,132.76,132.69,50.0]
[1725900607486,15.6113,132.76,132.7,1.50665447]
[1725900607666,15.6113,132.76,132.58,32.6]
[1725900607667,15.6113,132.76,132.67,50.0]
[1725900608164,15.6113,132.76,132.65,50.0]
[1725900608871,45.0,132.75,132.65,50.0]
[1725900609182,15.6113,132.76,132.69,50.0]
[1725900609367,15.6113,132.76,132.7,1.5066393]
[1725900609576,15.6113,132.76,132.69,50.0]
[1725900610101,15.6113,132.76,132.71,50.0]
[1725900610291,15.6113,132.76,132.73,50.0]
[1725900611765,15.6113,132.76,132.68,0.12549]
[1725900611766,15.6113,132.76,132.69,50.0]
[1725900611990,15.6113,132.76,132.71,50.0]
[1725900612158,15.6113,132.76,132.72,1.50637086]
[1725900612484,15.6113,132.76,132.71,50.0]
[1725900612673,15.6113,132.76,132.73,1.50637218]
[1725900612880,15.6113,132.76,132.74,1.50632818]
[1725900613768,15.6113,132.76,132.72,1.50634654]
[1725900614581,15.204,132.84,132.74,50.0]
[1725900615183,15.204,132.84,132.79,50.0]
[1725900615492,15.204,132.84,132.8,1.50549815]
[1725900615699,21.754,132.92,132.83,50.0]
[1725900615868,21.754,132.92,132.84,1.5050253]
[1725900616069,21.754,132.92,132.81,50.0]
[1725900616287,21.754,132.92,132.82,1.50536294]
[1725900616498,21.754,132.92,132.83,51.50505496]
[1725900616703,21.754,132.92,132.84,1.50502508]
[1725900617187,21.754,132.92,132.83,50.0]
[1725900617569,21.754,132.92,132.85,50.0]
[1725900618376,21.754,132.92,132.65,15.6113]
[1725900618581,31.11169862,132.92,132.77,50.0]
[1725900618777,21.754,132.92,132.8,50.0]
[1725900619088,21.754,132.92,132.82,50.0]
[1725900619490,20.0,132.91,132.8,50.0]